lending/lending_fUSD_20250808
["ID","MTS","AMOUNT","RATE_DAILY","PERIOD"]
[378036314,1754674396484,-276.97698351,0.00023872,2]
[378036315,1754674396495,-421.44,0.00023872,2]
[378036316,1754674396506,-418.64,0.00023872,2]
[378036317,1754674396516,-504.49,0.00023872,2]
[378036318,1754674396526,-700.9,0.00023872,2]
[378036319,1754674396536,-520.77,0.00023872,2]
[378036320,1754674396545,-484.85,0.00023872,2]
[378036321,1754674396554,-432.17,0.00023872,2]
[378036322,1754674396563,-1178.17,0.00023872,2]
[378036323,1754674396573,-456.42,0.00023872,2]
[378036324,1754674396582,-400.0,0.00023872,2]
[378036325,1754674396591,-534.77,0.00023872,2]
[378036326,1754674396601,-486.58256946,0.00023872,2]
[378036327,1754674396610,-435.31,0.00023872,2]
[378036328,1754674396619,-4517.84,0.00023872,2]
[378036329,1754674396631,-477.72,0.00023872,2]
[378036330,1754674396641,-202.83171804,0.00023872,2]
[378036331,1754674396651,-261.86152353,0.00023872,2]
[378036332,1754674396661,-4062.08,0.00023872,2]
[378036333,1754674396670,-469.3515557,0.00023872,2]
[378036334,1754674396680,-735.5,0.00023872,2]
[378036335,1754674396691,-1368.24,0.00023872,2]
[378036336,1754674396700,-455.97,0.00023872,2]
[378036337,1754674396710,-253.74761751,0.00023872,2]
[378036338,1754674396719,-1187.72,0.00023872,2]
[378036339,1754674396729,-450.77,0.00023872,2]
[378036340,1754674396739,-400.0,0.00023872,2]
[378036341,1754674396748,-400.0,0.00023872,2]
[378036342,1754674396758,-1471.83,0.00023872,2]
[378036343,1754674396768,-557.2,0.00023872,2]
[378036344,1754674396778,-336.18649398,0.00023872,2]
[378036345,1754674396788,-436.5,0.00023872,2]
[378036346,1754674396797,-1359.72,0.00023872,2]
[378036347,1754674396807,-439.47,0.00023872,2]
[378036348,1754674396925,-400.0,0.00023872,2]
[378036349,1754674396935,-1098.38,0.00023872,2]
[378036350,1754674396945,-493.47,0.00023872,2]
[378036351,1754674396954,-505.49,0.00023872,2]
[378036352,1754674396963,-412.55,0.00023872,2]
[378036353,1754674396973,-539.32037076,0.00023872,2]
[378036354,1754674396982,-496.49,0.00023872,2]
[378036355,1754674396992,-808.39,0.00023872,2]
[378036356,1754674397001,-154.97052967,0.00023872,2]
[378036357,1754674397010,-485.06,0.00023872,2]
[378036358,1754674397021,-1155.05,0.00023872,2]
[378036359,1754674397030,-521.07,0.00023872,2]
[378036360,1754674397039,-643.05,0.00023872,2]
[378036361,1754674397050,-489.19,0.00023872,2]
[378036362,1754674397059,-760.76,0.00023872,2]
[378036363,1754674397068,-576.62,0.00023872,2]
[378036364,1754674397078,-437.71,0.00023872,2]
[378036365,1754674397087,-704.59,0.00023872,2]
[378036366,1754674397097,-919.49,0.00023872,2]
[378036367,1754674397111,-1259.56,0.00023872,2]
[378036368,1754674397120,-508.27,0.00023872,2]
[378036369,1754674397130,-1124.56,0.00023872,2]
[378036370,1754674397140,-424.0,0.00023872,2]
[378036371,1754674397151,-2507.35,0.00023872,2]
[378036372,1754674397165,-1219.23,0.00023872,2]
[378036373,1754674397178,-738.95,0.00023872,2]
[378036374,1754674397193,-739.75,0.00023872,2]
[378036375,1754674397202,-429.41,0.00023872,2]
[378036376,1754674397212,-408.09,0.00023872,2]
[378036377,1754674397221,-528.59811936,0.00023872,2]
[378036378,1754674397231,-22590.06,0.00023872,2]
[378036379,1754674397240,-444.79,0.00023872,2]
[378036380,1754674397250,-1009.83,0.00023872,2]
[378036381,1754674397259,-612.57,0.00023872,2]
[378036382,1754674397270,-446.86626769,0.00023872,2]
[378036383,1754674397279,-412.85,0.00023872,2]
[378036384,1754674397289,-1019.52,0.00023872,2]
[378036385,1754674397298,-602.24,0.00023872,2]
[378036386,1754674397307,-702.83,0.00023872,2]
[378036387,1754674397317,-401.02,0.00023872,2]
[378036388,1754674397326,-480.03,0.00023872,2]
[378036389,1754674397336,-414.37,0.00023872,2]
[378036390,1754674397346,-420.84,0.00023872,2]
[378036391,1754674397356,-469.13,0.00023872,2]
[378036392,1754674397365,-1156.43,0.00023872,2]
[378036393,1754674397375,-414.41,0.00023872,2]
[378036394,1754674397384,-1173.27,0.00023872,2]
[378036395,1754674397394,-2082.95,0.00023872,2]
[378036396,1754674397403,-400.0,0.00023872,2]
[378036397,1754674397412,-1355.51,0.00023872,2]
[378036398,1754674397422,-400.0,0.00023872,2]
[378036399,1754674397431,-712.97,0.00023872,2]
[378036400,1754674397441,-1433.19,0.00023872,2]
[378036401,1754674397451,-1279.98,0.00023872,2]
[378036402,1754674397460,-2544.43,0.00023872,2]
[378036403,1754674397469,-545.33,0.00023872,2]
[378036404,1754674397478,-1361.67,0.00023872,2]
[378036405,1754674397488,-3304.91,0.00023872,2]
[378036406,1754674397497,-680.15,0.00023872,2]
[378036407,1754674397507,-446.42,0.00023872,2]
[378036408,1754674397518,-1015.86,0.00023872,2]
[378036409,1754674397527,-400.0,0.00023872,2]
[378036410,1754674397536,-6584.79,0.00023872,2]
[378036411,1754674397546,-472.84,0.00023872,2]
[378036412,1754674397556,-645.58,0.00023872,2]
[378036413,1754674397565,-434.44,0.00023872,2]
[378036414,1754674397575,-510.44,0.00023872,2]
[378036415,1754674397585,-637.96,0.00023872,2]
[378036416,1754674397595,-4087.5,0.00023872,2]
[378036417,1754674397605,-400.0,0.00023872,2]
[378036418,1754674397614,-423.67,0.00023872,2]
[378036420,1754674397624,-1167.59,0.00023872,2]
[378036421,1754674397634,-839.14,0.00023872,2]
[378036422,1754674397644,-2534.72,0.00023872,2]
[378036423,1754674397654,-1923.32,0.00023872,2]
[378036424,1754674397663,-3221.54,0.00023872,2]
[378036425,1754674397674,-400.0,0.00023872,2]
[378036426,1754674397683,-2686.59,0.00023872,2]
[378036427,1754674397693,-2767.77,0.00023872,2]
[378036428,1754674397702,-4079.49,0.00023872,2]
[378036429,1754674397712,-1045.66,0.00023872,2]
[378036430,1754674397722,-3290.29,0.00023873,2]
[378036431,1754674397732,-2369.18,0.00023873,2]
[378036432,1754674397742,-13166.57,0.00023873,2]
[378036433,1754674397751,-1590.7,0.00023873,2]
[378036434,1754674397761,-1258.97,0.00023873,2]
[378036435,1754674397773,-2052.34,0.00023873,2]
[378036436,1754674397783,-508.01,0.00023873,2]
[378036437,1754674397793,-5234.06,0.00023873,2]
[378036438,1754674397802,-2455.21,0.00023873,2]
[378036439,1754674397811,-1846.96,0.00023873,2]
[378036440,1754674397823,-1243.92,0.00023873,2]
[378036441,1754674397832,-1638.01,0.00023873,2]
[378036442,1754674397841,-1639.76,0.00023873,2]
[378036443,1754674397851,-1386.66,0.00023873,2]
[378036444,1754674397860,-2763.15,0.00023873,2]
[378036445,1754674397870,-3536.52,0.00023873,2]
[378036446,1754674397879,-2140.87,0.00023873,2]
[378036447,1754674397890,-1711.31,0.00023873,2]
[378036448,1754674397900,-449.95,0.00023873,2]
[378036449,1754674397910,-388.18,0.000239,2]
[378036450,1754674397919,-457.64618948,0.000239,7]
[378036451,1754674397929,-3292.0,0.00023926,2]
[378036452,1754674397938,-4000.0,0.00024,4]
[378036453,1754674397947,-60525.03885402,0.00024,2]
[378036454,1754674397957,-997.04676727,0.00024,2]
[378036455,1754674397966,-8316.37079064,0.00024,14]
[378036456,1754674397975,-6453.78,0.00024,30]
[378036457,1754674397985,-1000.0,0.00024,60]
[378036458,1754674397995,-160.0,0.00024,7]
[378036459,1754674398004,-842.44706758,0.00024,7]
[378036460,1754674398013,-5000.00162153,0.00024,5]
[378036461,1754674398026,-776.71,0.00024036,2]
[378036462,1754674398035,-1000.0,0.0002407,2]
[378036463,1754674398045,-5265.63977911,0.000241,2]
[378036464,1754674398054,-402.285,0.00024109,2]
[378036465,1754674398064,-209.40437684,0.0002411,2]
[378036466,1754674398074,-467.74048313,0.00024144,2]
[378036467,1754674398084,-661.11,0.00024144,2]
[378036468,1754674398094,-2954.91,0.00024144,2]
[378036469,1754674398108,-2275.54,0.00024144,2]
[378036470,1754674398118,-946.48,0.00024144,2]
[378036471,1754674398128,-7691.76,0.00024144,2]
[378036472,1754674398137,-848.32,0.00024144,2]
[378036473,1754674398147,-1032.75,0.00024144,2]
[378036474,1754674398157,-1855.93,0.00024144,2]
[378036475,1754674398167,-600.19,0.00024144,2]
[378036476,1754674398176,-675.93,0.00024144,2]
[378036477,1754674398186,-5291.16,0.00024144,2]
[378036478,1754674398196,-3569.89,0.00024144,2]
[378036479,1754674398206,-2731.24,0.00024144,2]
[378036480,1754674398215,-643.22,0.00024144,2]
[378036481,1754674398225,-821.85,0.00024144,2]
[378036482,1754674398234,-1935.23,0.00024144,2]
[378036483,1754674398244,-774.94,0.00024144,2]
[378036484,1754674398253,-538.44,0.00024144,2]
[378036485,1754674398263,-447.97,0.00024144,2]
[378036486,1754674398275,-947.0,0.00024144,2]
[378036487,1754674398284,-1798.0,0.00024144,2]
[378036488,1754674398294,-977.0,0.00024144,2]
[378036489,1754674398303,-156.799685,0.00024145,2]
[378036490,1754674398313,-183.659282,0.00024145,2]
[378036491,1754674398322,-2162.28,0.00024145,2]
[378036492,1754674398332,-788.52,0.00024145,2]
[378036493,1754674398341,-606.57,0.00024145,2]
[378036494,1754674398351,-691.64,0.00024145,2]
[378036495,1754674398360,-504.23,0.00024145,2]
[378036496,1754674398369,-672.8,0.00024145,2]
[378036497,1754674398379,-711.68,0.00024145,2]
[378036498,1754674398388,-767.72,0.00024145,2]
[378036499,1754674398398,-692.39,0.00024145,2]
[378036500,1754674398408,-411.37,0.00024145,2]
[378036501,1754674398418,-460.18,0.00024145,2]
[378036502,1754674398427,-680.33,0.00024145,2]
[378036503,1754674398436,-418.64,0.00024145,2]
[378036504,1754674398446,-1053.65,0.00024145,2]
[378036505,1754674398455,-591.98,0.00024145,2]
[378036506,1754674398465,-400.0,0.00024145,2]
[378036507,1754674398475,-162.25676354,0.00024145,2]
[378036508,1754674398485,-820.42,0.00024145,2]
[378036509,1754674398494,-444.75,0.00024145,2]
[378036510,1754674398503,-540.05,0.00024145,2]
[378036511,1754674398513,-1065.2,0.00024145,2]
[378036512,1754674398525,-475.1,0.00024145,2]
[378036513,1754674398534,-663.95,0.00024145,2]
[378036514,1754674398544,-664.58,0.00024145,2]
[378036515,1754674398554,-552.2,0.00024145,2]
[378036516,1754674398563,-795.59,0.00024145,2]
[378036517,1754674398573,-1009.8,0.00024145,2]
[378036518,1754674398583,-400.0,0.00024145,2]
[378036519,1754674398593,-400.0,0.00024145,2]
[378036520,1754674398603,-758.91,0.00024145,2]
[378036521,1754674398612,-794.09,0.00024145,2]
[378036522,1754674398622,-405.9,0.00024145,2]
[378036523,1754674398631,-860.42,0.00024145,2]
[378036524,1754674398641,-497.38,0.00024145,2]
[378036525,1754674398650,-400.0,0.00024145,2]
[378036526,1754674398660,-675.98,0.00024145,2]
[378036527,1754674398670,-403.02396234,0.00024145,2]
[378036528,1754674398679,-1322.96,0.00024145,2]
[378036529,1754674398689,-515.94,0.00024145,2]
[378036530,1754674399005,-492.09,0.00024145,2]
[378036531,1754674399021,-1269.65,0.00024145,2]
[378036532,1754674399031,-1150.11,0.00024145,2]
[378036533,1754674399041,-729.76,0.00024145,2]
[378036534,1754674399051,-786.33,0.00024145,2]
[378036535,1754674399061,-400.0,0.00024145,2]
[378036536,1754674399070,-933.94,0.00024145,2]
[378036537,1754674399080,-1309.0,0.00024145,2]
[378036538,1754674399089,-630.93,0.00024145,2]
[378036539,1754674399100,-1201.36,0.00024145,2]
[378036540,1754674399112,-1106.53,0.00024145,2]
[378036541,1754674399122,-400.0,0.00024145,2]
[378036542,1754674399131,-623.4,0.00024145,2]
[378036543,1754674399142,-948.04,0.00024145,2]
[378036544,1754674399152,-1232.12,0.00024145,2]
[378036545,1754674399161,-501.95,0.00024145,2]
[378036546,1754674399171,-1029.5,0.00024145,2]
[378036547,1754674399182,-1075.7,0.00024145,2]
[378036548,1754674399192,-1017.42,0.00024145,2]
[378036549,1754674399202,-467.67,0.00024145,2]
[378036550,1754674399211,-1552.35,0.00024145,2]
[378036551,1754674399221,-743.32,0.00024145,2]
[378036552,1754674399231,-466.11,0.00024145,2]
[378036554,1754674399241,-496.93,0.00024145,2]
[378036555,1754674399251,-400.0,0.00024145,2]
[378036556,1754674399260,-1260.4,0.00024145,2]
[378036557,1754674399273,-470.18,0.00024145,2]
[378036558,1754674399283,-2588.08,0.00024145,2]
[378036559,1754674399292,-641.02,0.00024145,2]
[378036560,1754674399302,-400.0,0.00024145,2]
[378036561,1754674399312,-3797.91,0.00024145,2]
[378036562,1754674399322,-1241.75,0.00024145,2]
[378036563,1754674399331,-1052.14,0.00024145,2]
[378036564,1754674399341,-889.41,0.00024145,2]
[378036565,1754674399350,-739.75,0.00024145,2]
[378036566,1754674399361,-1630.68,0.00024145,2]
[378036567,1754674399371,-1099.06,0.00024145,2]
[378036568,1754674399380,-2289.35,0.00024145,2]
[378036569,1754674399390,-1124.14,0.00024145,2]
[378036570,1754674399400,-1750.29,0.00024145,2]
[378036571,1754674399409,-838.76,0.00024145,2]
[378036572,1754674399419,-1564.85,0.00024145,2]
[378036573,1754674399429,-752.21,0.00024145,2]
[378036574,1754674399438,-1259.02,0.00024145,2]
[378036575,1754674399448,-1360.45,0.00024145,2]
[378036576,1754674399457,-370.74020804,0.00024145,2]
[378036577,1754674399468,-457.11,0.00024145,2]
[378036578,1754674399477,-907.31,0.00024145,2]
[378036579,1754674399486,-447.46,0.00024145,2]
[378036580,1754674399496,-516.43,0.00024145,2]
[378036581,1754674399506,-635.96,0.00024145,2]
[378036582,1754674399516,-841.87,0.00024145,2]
[378036583,1754674399526,-2511.44,0.00024145,2]
[378036584,1754674399536,-909.41,0.00024145,2]
[378036585,1754674399545,-509.61450886,0.00024145,2]
[378036586,1754674399555,-1757.88,0.00024145,2]
[378036587,1754674399564,-633.54,0.00024145,2]
[378036588,1754674399575,-748.76,0.00024145,2]
[378036589,1754674399584,-3698.85,0.00024145,2]
[378036590,1754674399594,-1660.57,0.00024145,2]
[378036591,1754674399604,-466.12,0.00024145,2]
[378036592,1754674399614,-2130.8,0.00024145,2]
[378036593,1754674399624,-724.03,0.00024145,2]
[378036594,1754674399633,-420.45,0.00024145,2]
[378036595,1754674399643,-1000.99,0.00024145,2]
[378036596,1754674399653,-956.66,0.00024145,2]
[378036597,1754674399663,-825.21,0.00024145,2]
[378036598,1754674399673,-1094.31,0.00024145,2]
[378036599,1754674399683,-400.0,0.00024145,2]
[378036600,1754674399693,-1301.7,0.00024145,2]
[378036601,1754674399702,-815.06,0.00024145,2]
[378036602,1754674399712,-498.58,0.00024145,2]
[378036603,1754674399722,-1195.76,0.00024145,2]
[378036604,1754674399731,-552.06,0.00024145,2]
[378036605,1754674399741,-442.27,0.00024145,2]
[378036606,1754674399751,-484.27,0.00024145,2]
[378036607,1754674399760,-624.41,0.00024145,2]
[378036608,1754674399770,-844.68,0.00024145,2]
[378036609,1754674399780,-440.75,0.00024145,2]
[378036610,1754674399790,-1182.8,0.00024145,2]
[378036611,1754674399800,-1893.37,0.00024145,2]
[378036612,1754674399810,-2556.32,0.00024145,2]
[378036613,1754674399820,-524.52,0.00024145,2]
[378036614,1754674399830,-520.64,0.00024145,2]
[378036615,1754674399839,-3101.03,0.00024145,2]
[378036616,1754674399849,-732.88,0.00024145,2]
[378036617,1754674399859,-856.38,0.00024145,2]
[378036618,1754674399868,-616.08,0.00024145,2]
[378036619,1754674399878,-4832.78,0.00024145,2]
[378036620,1754674399888,-627.0,0.00024145,2]
[378036621,1754674399898,-952.86,0.00024145,2]
[378036622,1754674399907,-480.32,0.00024145,2]
[378036623,1754674399917,-3627.65,0.00024145,2]
[378036624,1754674399926,-400.0,0.00024145,2]
[378036625,1754674399936,-803.51,0.00024145,2]
[378036626,1754674399945,-1841.68,0.00024145,2]
[378036627,1754674399955,-429.23,0.00024145,2]
[378036628,1754674399965,-1163.42,0.00024145,2]
[378036629,1754674399977,-781.89,0.00024145,2]
[378036630,1754674399987,-585.49,0.00024145,2]
[378036631,1754674399997,-467.89,0.00024145,2]
[378036632,1754674400007,-784.71,0.00024145,2]
[378036633,1754674400017,-971.72,0.00024145,2]
[378036634,1754674400027,-842.16,0.00024145,2]
[378036635,1754674400037,-1364.1,0.00024145,2]
[378036636,1754674400046,-437.29,0.00024145,2]
[378036637,1754674400057,-498.13,0.00024145,2]
[378036638,1754674400067,-482.49,0.00024145,2]
[378036639,1754674400078,-932.41,0.00024145,2]
[378036640,1754674400087,-4194.96,0.00024145,2]
[378036641,1754674400096,-505.88171228,0.00024145,2]
[378036642,1754674400112,-3720.86,0.00024145,2]
[378036643,1754674400122,-467.73,0.00024145,2]
[378036644,1754674400131,-694.04,0.00024145,2]
[378036645,1754674400140,-785.65,0.00024145,2]
[378036646,1754674400150,-1073.17,0.00024145,2]
[378036647,1754674400159,-2564.99,0.00024145,2]
[378036648,1754674400168,-1271.83,0.00024145,2]
[378036649,1754674400180,-695.37,0.00024145,2]
[378036650,1754674400189,-561.21,0.00024145,2]
[378036651,1754674400198,-501.58,0.00024145,2]
[378036652,1754674400209,-1291.31,0.00024145,2]
[378036653,1754674400218,-3151.61,0.00024145,2]
[378036654,1754674400229,-1430.86,0.00024145,2]
[378036655,1754674400239,-836.4,0.00024145,2]
[378036656,1754674400248,-850.6,0.00024145,2]
[378036657,1754674400258,-421.02,0.00024145,2]
[378036658,1754674400270,-400.0,0.00024145,2]
[378036659,1754674400279,-2829.87,0.00024145,2]
[378036660,1754674400288,-3147.45,0.00024145,2]
[378036661,1754674400298,-2412.01,0.00024145,2]
[378036662,1754674400309,-3174.96,0.00024145,2]
[378036663,1754674400319,-475.15,0.00024146,2]
[378036664,1754674400331,-400.0,0.00024146,2]
[378036665,1754674400342,-613.14,0.00024146,2]
[378036666,1754674400352,-400.0,0.00024146,2]
[378036667,1754674400362,-487.53,0.00024146,2]
[378036668,1754674400371,-470.26,0.00024146,2]
[378036669,1754674400380,-400.0,0.00024146,2]
[378036670,1754674400390,-580.1,0.00024146,2]
[378036671,1754674400399,-462.27,0.00024146,2]
[378036672,1754674400409,-400.0,0.00024146,2]
[378036673,1754674400418,-479.7,0.00024146,2]
[378036674,1754674400428,-568.03,0.00024146,2]
[378036675,1754674400437,-421.44,0.00024146,2]
[378036676,1754674400448,-418.64,0.00024146,2]
[378036677,1754674400459,-504.49,0.00024146,2]
[378036678,1754674400469,-700.9,0.00024146,2]
[378036679,1754674400478,-520.77,0.00024146,2]
[378036680,1754674400487,-484.85,0.00024146,2]
[378036681,1754674400496,-432.17,0.00024146,2]
[378036682,1754674400506,-456.42,0.00024146,2]
[378036683,1754674400515,-1178.17,0.00024146,2]
[378036684,1754674400526,-400.0,0.00024146,2]
[378036685,1754674400536,-534.77,0.00024146,2]
[378036686,1754674400545,-435.31,0.00024146,2]
[378036687,1754674400554,-4517.84,0.00024146,2]
[378036688,1754674400563,-477.72,0.00024146,2]
[378036689,1754674400573,-4062.08,0.00024146,2]
[378036690,1754674400582,-735.5,0.00024146,2]
[378036691,1754674400592,-1368.24,0.00024146,2]
[378036692,1754674400601,-1187.72,0.00024146,2]
[378036693,1754674400610,-450.77,0.00024146,2]
[378036694,1754674400622,-400.0,0.00024146,2]
[378036695,1754674400632,-400.0,0.00024146,2]
[378036696,1754674400642,-1471.83,0.00024146,2]
[378036697,1754674400652,-557.2,0.00024146,2]
[378036698,1754674400661,-436.5,0.00024146,2]
[378036699,1754674400671,-1359.72,0.00024146,2]
[378036700,1754674400680,-439.47,0.00024146,2]
[378036701,1754674400690,-400.0,0.00024146,2]
[378036702,1754674400700,-1098.38,0.00024146,2]
[378036703,1754674400710,-493.47,0.00024146,2]
[378036704,1754674400719,-505.49,0.00024146,2]
[378036705,1754674400728,-412.55,0.00024146,2]
[378036706,1754674400739,-496.49,0.00024146,2]
[378036707,1754674400748,-808.39,0.00024146,2]
[378036708,1754674400757,-485.06,0.00024146,2]
[378036709,1754674400767,-1155.05,0.00024146,2]
[378036710,1754674400779,-521.07,0.00024146,2]
[378036711,1754674400788,-643.05,0.00024146,2]
[378036712,1754674400798,-489.19,0.00024146,2]
[378036713,1754674400808,-760.76,0.00024146,2]
[378036714,1754674400818,-576.62,0.00024146,2]
[378036715,1754674400828,-437.71,0.00024146,2]
[378036716,1754674400838,-704.59,0.00024146,2]
[378036717,1754674400847,-919.49,0.00024146,2]
[378036718,1754674400857,-1259.56,0.00024146,2]
[378036719,1754674400866,-508.27,0.00024146,2]
[378036720,1754674400877,-1124.56,0.00024146,2]
[378036721,1754674400886,-424.0,0.00024146,2]
[378036722,1754674400895,-2507.35,0.00024146,2]
[378036723,1754674400905,-1219.23,0.00024146,2]
[378036724,1754674400914,-738.95,0.00024146,2]
[378036725,1754674400923,-739.75,0.00024146,2]
[378036726,1754674400933,-429.41,0.00024146,2]
[378036727,1754674400943,-408.09,0.00024146,2]
[378036728,1754674400953,-22590.06,0.00024146,2]
[378036729,1754674400962,-444.79,0.00024146,2]
[378036730,1754674400972,-1009.83,0.00024146,2]
[378036731,1754674400981,-612.57,0.00024146,2]
[378036732,1754674400991,-412.85,0.00024146,2]
[378036733,1754674401000,-1019.52,0.00024146,2]
[378036734,1754674401009,-602.24,0.00024146,2]
[378036735,1754674401019,-702.83,0.00024146,2]
[378036736,1754674401029,-401.02,0.00024146,2]
[378036737,1754674401039,-480.03,0.00024146,2]
[378036738,1754674401049,-414.37,0.00024146,2]
[378036739,1754674401059,-420.84,0.00024146,2]
[378036740,1754674401068,-469.13,0.00024146,2]
[378036741,1754674401077,-1156.43,0.00024146,2]
[378036742,1754674401088,-414.41,0.00024146,2]
[378036743,1754674401098,-1173.27,0.00024146,2]
[378036744,1754674401111,-2082.95,0.00024146,2]
[378036745,1754674401120,-400.0,0.00024146,2]
[378036746,1754674401129,-1355.51,0.00024146,2]
[378036747,1754674401139,-400.0,0.00024146,2]
[378036748,1754674401148,-712.97,0.00024146,2]
[378036749,1754674401158,-1433.19,0.00024146,2]
[378036750,1754674401168,-1279.98,0.00024146,2]
[378036751,1754674401177,-2544.43,0.00024146,2]
[378036752,1754674401187,-545.33,0.00024146,2]
[378036753,1754674401196,-1361.67,0.00024146,2]
[378036754,1754674401206,-3304.91,0.00024146,2]
[378036755,1754674401215,-680.15,0.00024146,2]
[378036756,1754674401224,-446.42,0.00024146,2]
[378036757,1754674401233,-1015.86,0.00024146,2]
[378036758,1754674401244,-400.0,0.00024146,2]
[378036759,1754674401254,-6584.79,0.00024146,2]
[378036760,1754674401264,-472.84,0.00024146,2]
[378036761,1754674401275,-645.58,0.00024146,2]
[378036762,1754674401284,-434.44,0.00024146,2]
[378036763,1754674401292,-510.44,0.00024146,2]
[378036764,1754674401302,-637.96,0.00024146,2]
[378036765,1754674401314,-4087.5,0.00024146,2]
[378036766,1754674401330,-232.61456096,0.00024146,2]
[378036767,1754674401340,-423.67,0.00024146,2]
[378036768,1754674401350,-1167.59,0.00024146,2]
[378036769,1754674401361,-839.14,0.00024146,2]
[378036770,1754674401370,-2534.72,0.00024146,2]
[378036771,1754674401381,-1923.32,0.00024146,2]
[378036772,1754674401394,-3221.54,0.00024146,2]
[378036773,1754674401406,-400.0,0.00024146,2]
[378036774,1754674401417,-2686.59,0.00024146,2]
[378036775,1754674401531,-2767.77,0.00024146,2]
[378036776,1754674401540,-4079.49,0.00024146,2]
[378036777,1754674401551,-1045.66,0.00024146,2]
[378036778,1754674401561,-3290.29,0.00024147,2]
[378036779,1754674401571,-2369.18,0.00024147,2]
[378036780,1754674401580,-13166.57,0.00024147,2]
[378036781,1754674401590,-1590.7,0.00024147,2]
[378036782,1754674401599,-1258.97,0.00024147,2]
[378036783,1754674401609,-2052.34,0.00024147,2]
[378036784,1754674401618,-508.01,0.00024147,2]
[378036785,1754674401628,-5234.06,0.00024147,2]
[378036786,1754674401637,-2455.21,0.00024147,2]
[378036787,1754674401647,-1846.96,0.00024147,2]
[378036788,1754674401658,-1243.92,0.00024147,2]
[378036789,1754674401670,-1638.01,0.00024147,2]
[378036790,1754674401682,-1639.76,0.00024147,2]
[378036791,1754674401693,-1386.66,0.00024147,2]
[378036792,1754674401703,-2763.15,0.00024147,2]
[378036793,1754674401712,-3536.52,0.00024147,2]
[378036794,1754674401722,-2140.87,0.00024147,2]
[378036795,1754674401733,-1711.31,0.00024147,2]
[378036796,1754674401742,-449.95,0.00024147,2]
[378036797,1754674401752,-412.21285804,0.0002421,2]
[378036798,1754674401761,-3612.16499214,0.0002421,2]
[378036799,1754674401771,-661.11,0.00024418,2]
[378036800,1754674401780,-2954.91,0.00024418,2]
[378036801,1754674401790,-2275.54,0.00024418,2]
[378036802,1754674401800,-946.48,0.00024418,2]
[378036803,1754674401814,-7691.76,0.00024418,2]
[378036804,1754674401833,-848.32,0.00024418,2]
[378036805,1754674401854,-1032.75,0.00024418,2]
[378036806,1754674401867,-1855.93,0.00024418,2]
[378036807,1754674401877,-600.19,0.00024418,2]
[378036808,1754674401887,-675.93,0.00024418,2]
[378036809,1754674401898,-5291.16,0.00024418,2]
[378036810,1754674401908,-3569.89,0.00024418,2]
[378036811,1754674401918,-2731.24,0.00024418,2]
[378036812,1754674401929,-643.22,0.00024418,2]
[378036813,1754674401941,-821.85,0.00024418,2]
[378036814,1754674401950,-1935.23,0.00024418,2]
[378036815,1754674401961,-774.94,0.00024418,2]